fUST/lending_fUST_20250928
["ID","MTS","AMOUNT","RATE_DAILY","PERIOD"]
[388067058,1758997881625,-480.0,0.00036164,9]
[388067059,1758997881634,-480.0,0.00036164,9]
[388067060,1758997881643,-1289.02,0.00036164,9]
[388067061,1758997881654,-3165.25,0.00036164,9]
[388067062,1758997881665,-555.53,0.00036164,9]
[388067063,1758997881675,-480.0,0.00036164,9]
[388067064,1758997881685,-1487.53,0.00036164,9]
[388067065,1758997881695,-1709.99,0.00036164,9]
[388067066,1758997881705,-480.0,0.00036164,9]
[388067067,1758997881715,-740.14,0.00036164,9]
[388067068,1758997881725,-549.74,0.00036164,9]
[388067069,1758997881735,-621.24,0.00036164,9]
[388067070,1758997881745,-1374.87,0.00036164,9]
[388067071,1758997881755,-773.42,0.00036164,9]
[388067072,1758997881764,-480.0,0.00036164,9]
[388067073,1758997881773,-480.0,0.00036164,9]
[388067074,1758997881782,-313.95317734,0.00036164,9]
[388067075,1758997881791,-701.08,0.00036164,9]
[388067076,1758997881800,-177.2919546,0.00036164,9]
[388067077,1758997881811,-480.0,0.00036164,9]
[388067078,1758997881823,-4044.55,0.00036164,9]
[388067079,1758997881832,-635.1,0.00036164,9]
[388067080,1758997881842,-480.0,0.00036164,9]
[388067081,1758997881853,-480.0,0.00036164,9]
[388067082,1758997881863,-773.78,0.00036164,9]
[388067083,1758997881872,-480.0,0.00036164,9]
[388067084,1758997881881,-480.0,0.00036164,9]
[388067085,1758997881891,-4048.75,0.00036164,9]
[388067086,1758997881901,-365.98,0.00036418,120]
[388067087,1758997881910,-480.0,0.00036438,9]
[388067088,1758997881920,-821.95,0.00036438,9]
[388067089,1758997881929,-480.0,0.00036438,9]
[388067090,1758997881938,-480.0,0.00036438,9]
[388067091,1758997881948,-480.0,0.00036438,9]
[388067092,1758997881958,-480.0,0.00036438,9]
[388067093,1758997881967,-480.0,0.00036438,9]
[388067094,1758997881976,-480.0,0.00036438,9]
[388067095,1758997881985,-480.0,0.00036438,9]
[388067096,1758997881994,-414.93223854,0.00036438,9]
[388067097,1758997882004,-579.96,0.00036438,9]
[388067098,1758997882013,-480.0,0.00036438,9]
[388067099,1758997882023,-480.0,0.00036438,9]
[388067100,1758997882031,-745.71,0.00036438,9]
[388067101,1758997882041,-1246.41,0.00036438,9]
[388067102,1758997882050,-480.0,0.00036438,9]
[388067103,1758997882059,-480.0,0.00036438,9]
[388067104,1758997882068,-480.0,0.00036438,7]
[388067105,1758997882207,-524.55231366,0.00036438,9]
[388067106,1758997882231,-480.0,0.00036438,9]
[388067107,1758997882241,-480.0,0.00036438,9]
[388067108,1758997882250,-480.0,0.00036438,9]
[388067109,1758997882260,-1460.45,0.00036438,9]
[388067110,1758997882269,-480.0,0.00036438,9]
[388067111,1758997882278,-611.76,0.00036438,9]
[388067112,1758997882288,-480.0,0.00036438,9]
[388067113,1758997882298,-480.0,0.00036438,9]
[388067114,1758997882307,-924.86,0.00036438,9]
[388067115,1758997882319,-480.0,0.00036438,9]
[388067116,1758997882328,-480.0,0.00036438,9]
[388067117,1758997882337,-480.0,0.00036438,9]
[388067118,1758997882347,-480.0,0.00036438,9]
[388067119,1758997882356,-480.0,0.00036438,9]
[388067120,1758997882366,-586.41,0.00036438,9]
[388067121,1758997882375,-480.0,0.00036438,9]
[388067122,1758997882384,-480.0,0.00036438,9]
[388067123,1758997882393,-640.13,0.00036438,9]
[388067124,1758997882404,-838.78,0.00036438,9]
[388067125,1758997882415,-494.29399835,0.00036438,9]
[388067126,1758997882426,-480.0,0.00036438,9]
[388067127,1758997882435,-480.0,0.00036438,9]
[388067128,1758997882445,-480.0,0.00036438,9]
[388067129,1758997882455,-480.0,0.00036438,9]
[388067130,1758997882464,-480.0,0.00036438,9]
[388067131,1758997882474,-827.67,0.00036438,9]
[388067132,1758997882483,-888.9,0.00036438,9]
[388067133,1758997882492,-480.0,0.00036438,9]
[388067134,1758997882502,-495.74,0.00036438,9]
[388067135,1758997882511,-1714.32,0.00036438,9]
[388067136,1758997882520,-624.08,0.00036438,9]
[388067137,1758997882530,-480.0,0.00036438,9]
[388067138,1758997882539,-480.0,0.00036438,9]
[388067139,1758997882548,-480.0,0.00036438,9]
[388067140,1758997882557,-480.0,0.00036438,9]
[388067141,1758997882567,-480.0,0.00036438,9]
[388067142,1758997882575,-767.65,0.00036438,9]
[388067143,1758997882584,-480.0,0.00036438,9]
[388067144,1758997882594,-480.0,0.00036438,9]
[388067145,1758997882605,-166.03109848,0.00036438,9]
[388067146,1758997882614,-654.52,0.00036438,9]
[388067147,1758997882624,-641.4,0.00036438,9]
[388067148,1758997882634,-480.0,0.00036438,9]
[388067149,1758997882643,-657.89,0.00036438,9]
[388067150,1758997882652,-687.32,0.00036438,9]
[388067151,1758997882660,-480.0,0.00036438,9]
[388067152,1758997882670,-984.98,0.00036438,9]
[388067153,1758997882679,-480.0,0.00036438,9]
[388067154,1758997882688,-480.0,0.00036438,9]
[388067155,1758997882698,-480.0,0.00036438,9]
[388067156,1758997882708,-804.55,0.00036438,9]
[388067157,1758997882717,-1202.92,0.00036438,9]
[388067158,1758997882727,-506.69,0.00036438,9]
[388067159,1758997882736,-480.0,0.00036438,9]
[388067160,1758997882746,-480.0,0.00036438,9]
[388067161,1758997882755,-480.0,0.00036438,9]
[388067162,1758997882764,-670.7,0.00036438,9]
[388067163,1758997882774,-484.44,0.00036438,9]
[388067164,1758997882783,-480.0,0.00036438,9]
[388067165,1758997882794,-480.0,0.00036438,9]
[388067166,1758997882803,-680.1,0.00036438,9]
[388067167,1758997882812,-480.0,0.00036438,9]
[388067168,1758997882821,-480.0,0.00036438,9]
[388067169,1758997882830,-480.0,0.00036438,9]
[388067170,1758997882841,-639.56,0.00036438,9]
[388067171,1758997882850,-967.3,0.00036438,9]
[388067172,1758997882859,-480.0,0.00036438,9]
[388067173,1758997882868,-480.0,0.00036438,9]
[388067174,1758997882877,-644.28,0.00036438,9]
[388067175,1758997882885,-480.0,0.00036438,9]
[388067176,1758997882895,-480.0,0.00036438,9]
[388067177,1758997882905,-735.13,0.00036438,9]
[388067178,1758997882914,-1008.33,0.00036438,9]
[388067179,1758997882924,-480.0,0.00036438,9]
[388067180,1758997882933,-495.64,0.00036438,9]
[388067181,1758997882942,-480.0,0.00036438,9]
[388067182,1758997882952,-480.0,0.00036438,9]
[388067183,1758997882961,-480.0,0.00036438,9]
[388067184,1758997882971,-482.28,0.00036438,9]
[388067185,1758997882981,-480.0,0.00036438,9]
[388067186,1758997882990,-480.0,0.00036438,9]
[388067187,1758997882999,-480.0,0.00036438,9]
[388067188,1758997883008,-527.25,0.00036438,9]
[388067189,1758997883017,-419.28571523,0.00036438,9]
[388067190,1758997883027,-726.77,0.00036438,9]
[388067191,1758997883036,-676.62,0.00036438,9]
[388067192,1758997883046,-480.0,0.00036438,9]
[388067193,1758997883056,-480.0,0.00036438,9]
[388067194,1758997883065,-580.89,0.00036438,9]
[388067195,1758997883075,-480.0,0.00036438,9]
[388067196,1758997883085,-480.0,0.00036438,9]
[388067197,1758997883094,-1489.82,0.00036438,9]
[388067198,1758997883104,-480.0,0.00036438,9]
[388067199,1758997883114,-480.0,0.00036438,9]
[388067200,1758997883123,-439.02517175,0.00036438,9]
[388067201,1758997883133,-1002.5,0.00036438,9]
[388067202,1758997883142,-709.35,0.00036438,9]
[388067203,1758997883151,-480.0,0.00036438,9]
[388067204,1758997883161,-480.0,0.00036438,9]
[388067205,1758997883170,-480.0,0.00036438,9]
[388067206,1758997883180,-480.0,0.00036438,9]
[388067207,1758997883190,-2233.22,0.00036438,9]
[388067208,1758997883200,-1680.74,0.00036438,9]
[388067209,1758997883210,-480.0,0.00036438,9]
[388067210,1758997883219,-480.0,0.00036438,9]
[388067211,1758997883230,-480.0,0.00036438,9]
[388067212,1758997883239,-1886.14,0.00036438,9]
[388067213,1758997883249,-480.0,0.00036438,9]
[388067214,1758997883258,-1218.71,0.00036438,9]
[388067215,1758997883268,-480.0,0.00036438,9]
[388067216,1758997883279,-480.0,0.00036438,9]
[388067217,1758997883289,-480.0,0.00036438,9]
[388067218,1758997883298,-480.0,0.00036438,9]
[388067219,1758997883308,-1327.72,0.00036438,9]
[388067220,1758997883317,-480.0,0.00036438,9]
[388067221,1758997883327,-1128.34,0.00036438,9]
[388067222,1758997883336,-480.0,0.00036438,9]
[388067223,1758997883346,-480.0,0.00036438,9]
[388067224,1758997883356,-480.0,0.00036438,9]
[388067225,1758997883366,-2258.67,0.00036438,9]
[388067226,1758997883376,-480.0,0.00036438,9]
[388067227,1758997883385,-700.85,0.00036438,9]
[388067228,1758997883395,-480.0,0.00036438,9]
[388067229,1758997883405,-480.0,0.00036438,9]
[388067230,1758997883416,-1174.22,0.00036438,9]
[388067231,1758997883426,-2335.56,0.00036438,9]
[388067232,1758997883436,-480.0,0.00036438,9]
[388067233,1758997883447,-560.18,0.00036438,9]
[388067234,1758997883456,-480.0,0.00036438,9]
[388067235,1758997883465,-480.0,0.00036438,9]
[388067236,1758997883475,-709.38,0.00036438,9]
[388067237,1758997883486,-986.26,0.00036438,9]
[388067238,1758997883496,-2457.12,0.00036438,9]
[388067239,1758997883505,-480.0,0.00036438,9]
[388067240,1758997883515,-480.0,0.00036438,9]
[388067241,1758997883524,-1938.12,0.00036438,9]
[388067242,1758997883533,-870.12,0.00036438,9]
[388067243,1758997883543,-480.0,0.00036438,9]
[388067244,1758997883552,-804.13,0.00036438,9]
[388067245,1758997883562,-480.0,0.00036438,9]
[388067246,1758997883573,-480.0,0.00036438,9]
[388067247,1758997883586,-1128.38,0.00036438,9]
[388067248,1758997883595,-480.0,0.00036438,9]
[388067249,1758997883604,-726.2,0.00036438,9]
[388067250,1758997883614,-480.0,0.00036438,9]
[388067251,1758997883623,-1183.73,0.00036438,9]
[388067252,1758997883633,-1736.8,0.00036438,9]
[388067253,1758997883642,-480.0,0.00036438,7]
[388067254,1758997883652,-542.71,0.00036438,9]
[388067255,1758997883661,-480.0,0.00036438,9]
[388067256,1758997883671,-480.0,0.00036438,9]
[388067257,1758997883680,-480.0,0.00036438,9]
[388067258,1758997883689,-527.17,0.00036438,9]
[388067259,1758997883699,-480.0,0.00036438,9]
[388067260,1758997883709,-480.0,0.00036438,9]
[388067261,1758997883718,-1084.07,0.00036438,9]
[388067262,1758997883728,-480.0,0.00036438,9]
[388067263,1758997883737,-480.0,0.00036438,9]
[388067264,1758997883747,-1242.03,0.00036438,9]
[388067265,1758997883756,-480.0,0.00036438,9]
[388067266,1758997883778,-864.21,0.00036438,9]
[388067267,1758997883789,-480.0,0.00036438,9]
[388067268,1758997883800,-654.96,0.00036438,9]
[388067269,1758997883810,-480.0,0.00036438,9]
[388067270,1758997883820,-704.03,0.00036438,9]
[388067271,1758997883829,-203.89,0.00036438,9]
[388067272,1758997883839,-19748.13,0.00036438,9]
[388067273,1758997883849,-3979.06,0.00036438,9]
[388067274,1758997883860,-480.0,0.00036438,9]
[388067275,1758997883870,-480.0,0.00036438,9]
[388067276,1758997883880,-480.0,0.00036438,9]
[388067277,1758997883890,-480.0,0.00036438,9]
[388067278,1758997883900,-480.0,0.00036438,9]
[388067279,1758997883911,-480.0,0.00036438,9]
[388067280,1758997883921,-592.93,0.00036438,9]
[388067281,1758997883931,-480.0,0.00036438,9]
[388067282,1758997883942,-480.0,0.00036438,9]
[388067283,1758997883952,-480.0,0.00036438,9]
[388067284,1758997883961,-480.0,0.00036438,9]
[388067285,1758997883970,-3740.31,0.00036438,9]
[388067286,1758997883980,-504.46294111,0.00036438,9]
[388067287,1758997883990,-490.47,0.00036438,9]
[388067288,1758997884001,-480.0,0.00036438,9]
[388067289,1758997884011,-973.45,0.00036438,9]
[388067290,1758997884021,-480.0,0.00036438,9]
[388067291,1758997884031,-480.0,0.00036438,9]
[388067292,1758997884042,-2227.46,0.00036438,9]
[388067293,1758997884052,-1686.18,0.00036438,9]
[388067294,1758997884062,-480.0,0.00036438,9]
[388067295,1758997884072,-500.0,0.00036438,30]
[388067296,1758997884081,-480.0,0.00036438,9]
[388067297,1758997884092,-906.45,0.00036438,9]
[388067298,1758997884102,-480.0,0.00036438,9]
[388067299,1758997884112,-489.04,0.00036438,9]
[388067300,1758997884121,-480.0,0.00036438,9]
[388067301,1758997884131,-480.0,0.00036438,9]
[388067302,1758997884141,-1041.71,0.00036438,9]
[388067303,1758997884151,-1630.01,0.00036438,9]
[388067304,1758997884161,-415.73803862,0.00036438,9]
[388067305,1758997884170,-501.47,0.00036438,9]
[388067306,1758997884180,-706.66,0.00036438,9]
[388067307,1758997884190,-480.0,0.00036438,9]
[388067308,1758997884201,-480.0,0.00036438,9]
[388067309,1758997884212,-480.0,0.00036438,9]
[388067310,1758997884223,-4544.98,0.00036438,9]
[388067311,1758997884233,-611.03,0.00036438,9]
[388067312,1758997884243,-480.0,0.00036438,9]
[388067313,1758997884254,-527.42,0.00036438,9]
[388067314,1758997884264,-480.0,0.00036438,9]
[388067315,1758997884274,-633.24,0.00036438,9]
[388067316,1758997884285,-480.0,0.00036438,9]
[388067317,1758997884294,-492.6307685,0.00036438,9]
[388067318,1758997884304,-480.0,0.00036438,9]
[388067319,1758997884313,-1684.93,0.00036438,9]
[388067320,1758997884322,-547.97,0.00036438,9]
[388067321,1758997884332,-480.0,0.00036438,9]
[388067322,1758997884342,-1174.56,0.00036438,9]
[388067323,1758997884352,-480.0,0.00036438,9]
[388067324,1758997884361,-480.0,0.00036438,9]
[388067325,1758997884370,-500.0,0.00036438,9]
[388067326,1758997884379,-1801.25,0.00036438,9]
[388067327,1758997884388,-480.0,0.00036438,9]
[388067328,1758997884397,-500.0,0.00036438,9]
[388067329,1758997884410,-480.0,0.00036438,9]
[388067330,1758997884419,-480.0,0.00036438,9]
[388067331,1758997884429,-480.0,0.00036438,9]
[388067332,1758997884440,-480.0,0.00036438,9]
[388067333,1758997884450,-2558.39,0.00036438,9]
[388067334,1758997884459,-480.0,0.00036438,9]
[388067335,1758997884469,-311.91969463,0.00036438,9]
[388067336,1758997884479,-1059.26,0.00036438,9]
[388067337,1758997884488,-1304.54,0.00036438,9]
[388067338,1758997884498,-711.67,0.00036438,9]
[388067339,1758997884508,-1965.18,0.00036438,9]
[388067340,1758997884518,-9329.3,0.00036438,9]
[388067341,1758997884527,-480.0,0.00036438,9]
[388067342,1758997884536,-2909.06,0.00036438,9]
[388067343,1758997884546,-480.0,0.00036438,9]
[388067344,1758997884555,-202.69402252,0.00036438,9]
[388067345,1758997884565,-480.0,0.00036438,9]
[388067346,1758997884574,-1573.34,0.00036438,9]
[388067347,1758997884584,-480.0,0.00036438,9]
[388067348,1758997884593,-480.0,0.00036438,9]
[388067349,1758997884603,-2419.24,0.00036438,9]
[388067350,1758997884612,-480.0,0.00036438,9]
[388067351,1758997884623,-535.37,0.00036438,9]
[388067352,1758997884632,-748.96,0.00036438,9]
[388067353,1758997884641,-480.0,0.00036438,9]
[388067354,1758997884651,-480.0,0.00036438,9]
[388067355,1758997884659,-5287.15,0.00036438,3]
[388067356,1758997884669,-937.25,0.00036438,9]
[388067357,1758997884678,-760.22,0.00036438,9]
[388067358,1758997884687,-506.64,0.00036438,9]
[388067359,1758997884696,-480.0,0.00036438,9]
[388067360,1758997884706,-3695.5,0.00036438,9]
[388067361,1758997884716,-2360.86,0.00036438,9]
[388067362,1758997884725,-1126.85,0.00036438,9]
[388067363,1758997884734,-480.0,0.00036438,9]
[388067364,1758997884744,-2195.77,0.00036438,9]
[388067365,1758997884754,-480.0,0.00036438,9]
[388067366,1758997884763,-480.0,0.00036438,9]
[388067367,1758997884771,-480.0,0.00036438,9]
[388067368,1758997884780,-480.0,0.00036438,9]
[388067369,1758997884790,-480.0,0.00036438,9]
[388067370,1758997884799,-3172.01,0.00036438,9]
[388067371,1758997884809,-3081.13,0.00036438,9]
[388067372,1758997884818,-1319.99,0.00036438,9]
[388067373,1758997884832,-877.25,0.00036438,9]
[388067374,1758997884841,-549.23363878,0.00036438,9]
[388067375,1758997884851,-9844.2,0.00036438,9]
[388067376,1758997884861,-635.95,0.00036438,9]
[388067377,1758997884871,-3860.08,0.00036438,9]
[388067378,1758997884880,-641.01,0.00036438,9]
[388067379,1758997884890,-7092.91,0.00036438,9]
[388067380,1758997884899,-480.0,0.00036438,9]
[388067381,1758997884909,-623.14253872,0.00036438,9]
[388067382,1758997884918,-480.0,0.00036438,9]
[388067383,1758997884928,-480.0,0.00036438,9]
[388067384,1758997884937,-480.0,0.00036438,9]
[388067385,1758997884946,-4924.13,0.00036438,9]
[388067386,1758997884956,-480.0,0.00036438,9]
[388067387,1758997884966,-5282.46,0.00036438,9]
[388067388,1758997885185,-823.53,0.00036438,9]
[388067389,1758997885195,-480.0,0.00036438,9]
[388067390,1758997885206,-490.45,0.00036438,9]
[388067391,1758997885215,-981.99,0.00036438,9]
[388067392,1758997885225,-741.53,0.00036438,9]
[388067393,1758997885235,-2847.4,0.00036438,9]
[388067394,1758997885244,-480.0,0.00036438,9]
[388067395,1758997885253,-480.0,0.00036438,9]
[388067396,1758997885262,-480.0,0.00036438,9]
[388067397,1758997885271,-1703.91,0.00036438,9]
[388067398,1758997885280,-795.42,0.00036438,9]
[388067399,1758997885290,-480.0,0.00036438,9]
[388067400,1758997885299,-2239.46,0.00036438,9]
[388067401,1758997885308,-754.28,0.00036438,9]
[388067402,1758997885318,-661.35,0.00036438,9]
[388067403,1758997885327,-480.0,0.00036438,9]
[388067404,1758997885336,-543.26,0.00036438,9]
[388067405,1758997885346,-480.0,0.00036438,9]
[388067406,1758997885355,-510.93,0.00036438,9]
[388067407,1758997885365,-1055.88,0.00036438,9]
[388067408,1758997885375,-480.0,0.00036438,9]
[388067409,1758997885385,-480.0,0.00036438,9]
[388067410,1758997885395,-480.0,0.00036438,9]
[388067411,1758997885407,-480.0,0.00036438,9]
[388067412,1758997885418,-480.0,0.00036438,9]
[388067413,1758997885427,-489.07,0.00036438,9]
[388067414,1758997885438,-480.0,0.00036438,9]
[388067415,1758997885450,-5302.41,0.00036438,9]
[388067416,1758997885459,-678.36,0.00036438,9]
[388067417,1758997885469,-1027.71,0.00036438,9]
[388067418,1758997885478,-480.0,0.00036438,9]
[388067419,1758997885489,-944.7,0.00036438,9]
[388067420,1758997885498,-507.75,0.00036438,9]
[388067421,1758997885507,-480.0,0.00036438,9]
[388067422,1758997885517,-1275.11,0.00036438,9]
[388067423,1758997885526,-809.87,0.00036438,9]
[388067424,1758997885535,-480.0,0.00036438,9]
[388067425,1758997885544,-1082.0,0.00036438,9]
[388067426,1758997885554,-480.0,0.00036438,9]
[388067427,1758997885564,-9317.03,0.00036438,9]
[388067428,1758997885573,-641.15,0.00036438,9]
[388067429,1758997885582,-804.44,0.00036438,9]
[388067430,1758997885591,-480.0,0.00036438,9]
[388067431,1758997885601,-480.0,0.00036438,9]
[388067432,1758997885611,-480.0,0.00036438,9]
[388067433,1758997885620,-2561.61,0.00036438,9]
[388067434,1758997885632,-1412.08,0.00036438,9]
[388067435,1758997885641,-480.0,0.00036438,9]
[388067436,1758997885651,-3259.98,0.00036438,9]
[388067437,1758997885659,-816.3,0.00036438,9]
[388067438,1758997885668,-1725.97,0.00036438,9]
[388067439,1758997885677,-2441.91,0.00036438,9]
[388067440,1758997885686,-1049.37,0.00036438,9]
[388067441,1758997885695,-492.9,0.00036438,9]
[388067442,1758997885704,-480.0,0.00036438,9]
[388067443,1758997885712,-2584.0,0.00036438,9]
[388067444,1758997885721,-480.0,0.00036438,9]
[388067445,1758997885730,-2488.71,0.00036438,9]
[388067446,1758997885739,-512.78,0.00036438,9]
[388067447,1758997885748,-480.0,0.00036438,9]
[388067448,1758997885758,-720.37,0.00036438,9]
[388067449,1758997885766,-678.07,0.00036438,9]
[388067450,1758997885775,-480.0,0.00036438,9]
[388067451,1758997885784,-1947.34,0.00036438,9]
[388067452,1758997885793,-4936.06,0.00036438,9]
[388067453,1758997885801,-694.56,0.00036438,9]
[388067454,1758997885810,-480.0,0.00036438,9]
[388067455,1758997885819,-480.0,0.00036438,9]
[388067456,1758997885830,-6118.56,0.00036438,9]
[388067457,1758997885839,-480.0,0.00036438,9]
[388067458,1758997885848,-480.0,0.00036438,9]
[388067459,1758997885856,-870.93,0.00036438,9]
[388067460,1758997885867,-752.9,0.00036438,9]
[388067461,1758997885876,-1176.28,0.00036438,9]
[388067462,1758997885885,-535.46,0.00036438,9]
[388067463,1758997885894,-480.0,0.00036438,9]
[388067464,1758997885903,-1004.31,0.00036438,9]
[388067465,1758997885912,-492.63,0.00036438,9]
[388067466,1758997885920,-480.0,0.00036438,9]
[388067467,1758997885929,-480.0,0.00036438,9]
[388067468,1758997885938,-3100.91,0.00036438,9]
[388067469,1758997885947,-480.0,0.00036438,9]
[388067470,1758997885956,-480.0,0.00036438,9]
[388067471,1758997885965,-1289.02,0.00036438,9]
[388067472,1758997885974,-3165.25,0.00036438,9]
[388067473,1758997885983,-555.53,0.00036438,9]
[388067474,1758997885992,-480.0,0.00036438,9]
[388067475,1758997886001,-1487.53,0.00036438,9]
[388067476,1758997886010,-1709.99,0.00036438,9]
[388067477,1758997886019,-480.0,0.00036438,9]
[388067478,1758997886028,-740.14,0.00036438,9]
[388067479,1758997886036,-549.74,0.00036438,9]
[388067480,1758997886046,-621.24,0.00036438,9]
[388067481,1758997886055,-1374.87,0.00036438,9]
[388067482,1758997886064,-773.42,0.00036438,9]
[388067483,1758997886073,-480.0,0.00036438,9]
[388067484,1758997886081,-480.0,0.00036438,9]
[388067485,1758997886090,-701.08,0.00036438,9]
[388067486,1758997886099,-480.0,0.00036438,9]
[388067487,1758997886108,-635.1,0.00036438,9]
[388067488,1758997886117,-4044.55,0.00036438,9]
[388067489,1758997886126,-480.0,0.00036438,9]
[388067490,1758997886135,-480.0,0.00036438,9]
[388067491,1758997886144,-773.78,0.00036438,9]
[388067492,1758997886153,-480.0,0.00036438,9]
[388067493,1758997886162,-511.90471317,0.00036438,9]
[388067494,1758997886171,-4048.75,0.00036438,9]
[388067495,1758997886180,-500.338,0.00036463,7]
[388067496,1758997886189,-167.85147762,0.0003653,9]
[388067497,1758997886198,-480.0,0.00036712,9]
[388067498,1758997886207,-821.95,0.00036712,9]
[388067499,1758997886216,-480.0,0.00036712,9]
[388067500,1758997886224,-480.0,0.00036712,9]
[388067501,1758997886233,-480.0,0.00036712,9]
[388067502,1758997886242,-480.0,0.00036712,9]
[388067503,1758997886251,-480.0,0.00036712,9]
[388067504,1758997886260,-480.0,0.00036712,9]
[388067505,1758997886269,-480.0,0.00036712,9]
[388067506,1758997886278,-605.18,0.00036712,9]
[388067507,1758997886287,-579.96,0.00036712,9]
[388067508,1758997886296,-480.0,0.00036712,9]
[388067509,1758997886305,-579.90229492,0.00036712,9]
[388067510,1758997886314,-745.71,0.00036712,9]
[388067511,1758997886323,-1246.41,0.00036712,9]
[388067512,1758997886332,-480.0,0.00036712,9]
[388067513,1758997886341,-480.0,0.00036712,9]
[388067514,1758997886350,-480.0,0.00036712,9]
[388067515,1758997886358,-480.0,0.00036712,9]
[388067516,1758997886367,-480.0,0.00036712,9]
[388067517,1758997886376,-1460.45,0.00036712,9]
[388067518,1758997886385,-480.0,0.00036712,9]
[388067519,1758997886394,-611.76,0.00036712,9]
[388067520,1758997886403,-480.0,0.00036712,9]
[388067521,1758997886416,-480.0,0.00036712,9]
[388067522,1758997886426,-924.86,0.00036712,9]
[388067523,1758997886435,-480.0,0.00036712,9]
[388067524,1758997886444,-480.0,0.00036712,9]
[388067525,1758997886453,-250.10065179,0.00036712,9]
[388067526,1758997886462,-480.0,0.00036712,9]
[388067527,1758997886471,-480.0,0.00036712,9]
[388067528,1758997886480,-586.41,0.00036712,9]
[388067529,1758997886489,-480.0,0.00036712,9]
[388067530,1758997886497,-513.30729102,0.00036712,9]
[388067531,1758997886506,-640.13,0.00036712,9]
[388067532,1758997886515,-838.78,0.00036712,9]
[388067533,1758997886524,-480.0,0.00036712,9]
[388067534,1758997886533,-480.0,0.00036712,9]
[388067535,1758997886543,-480.0,0.00036712,9]
[388067536,1758997886552,-480.0,0.00036712,9]
[388067537,1758997886561,-480.0,0.00036712,9]
[388067538,1758997886570,-827.67,0.00036712,9]
[388067539,1758997886579,-888.9,0.00036712,9]
[388067540,1758997886588,-480.0,0.00036712,9]
[388067541,1758997886597,-495.74,0.00036712,9]
[388067542,1758997886607,-1714.32,0.00036712,9]
[388067543,1758997886616,-624.08,0.00036712,9]
[388067544,1758997886626,-480.0,0.00036712,9]
[388067545,1758997886635,-404.16313606,0.00036712,9]
[388067546,1758997886644,-480.0,0.00036712,9]
[388067547,1758997886653,-519.41423203,0.00036712,9]
[388067548,1758997886662,-480.0,0.00036712,9]
[388067549,1758997886671,-767.65,0.00036712,9]
[388067550,1758997886680,-480.0,0.00036712,9]
[388067551,1758997886689,-480.0,0.00036712,9]
[388067552,1758997886698,-654.52,0.00036712,9]
[388067553,1758997886708,-641.4,0.00036712,9]
[388067554,1758997886717,-480.0,0.00036712,9]
[388067555,1758997886726,-657.89,0.00036712,9]
[388067556,1758997886736,-687.32,0.00036712,9]
[388067557,1758997886745,-480.0,0.00036712,9]